fUST/lending_fUST_20241223
["ID","MTS","AMOUNT","RATE_DAILY","PERIOD"]
[346405201,1734945041309,-500.0,0.00013698,2]
[346405202,1734945041319,-500.0,0.00013698,2]
[346405203,1734945041328,-500.0,0.00013698,2]
[346405204,1734945041338,-992.51,0.00013698,2]
[346405205,1734945041348,-500.0,0.00013698,2]
[346405206,1734945041358,-500.0,0.00013698,2]
[346405207,1734945041367,-523.36610012,0.00013698,2]
[346405208,1734945041377,-500.0,0.00013698,2]
[346405209,1734945041386,-500.0,0.00013698,2]
[346405210,1734945041395,-500.0,0.00013698,2]
[346405211,1734945041404,-500.0,0.00013698,2]
[346405212,1734945041413,-500.0,0.00013698,2]
[346405213,1734945041422,-500.63547758,0.00013698,2]
[346405214,1734945041431,-2153.29,0.00013698,2]
[346405215,1734945041440,-500.0,0.00013698,2]
[346405216,1734945041449,-500.0,0.00013698,2]
[346405217,1734945041458,-500.0,0.00013698,2]
[346405218,1734945041467,-500.0,0.00013698,2]
[346405219,1734945041476,-1478.41,0.00013698,2]
[346405220,1734945041486,-503.75658867,0.00013698,2]
[346405221,1734945041495,-336.91634743,0.00013698,2]
[346405222,1734945041504,-500.0,0.00013698,2]
[346405223,1734945041513,-500.0,0.00013698,2]
[346405224,1734945041522,-502.73368406,0.00013698,2]
[346405225,1734945041532,-510.49,0.00013698,2]
[346405226,1734945041541,-293.18,0.00013698,2]
[346405227,1734945041550,-500.0,0.00013698,2]
[346405228,1734945041559,-500.0,0.00013698,2]
[346405229,1734945041568,-500.0,0.00013698,2]
[346405230,1734945041578,-1577.72,0.00013698,2]
[346405231,1734945041587,-500.0,0.00013698,2]
[346405232,1734945041596,-719.13,0.00013698,2]
[346405233,1734945041605,-500.0,0.00013698,2]
[346405234,1734945041614,-500.0,0.00013698,2]
[346405235,1734945041623,-500.0,0.00013698,2]
[346405236,1734945041632,-500.0,0.00013698,2]
[346405237,1734945041642,-572.13,0.00013698,2]
[346405238,1734945041651,-500.0,0.00013698,2]
[346405239,1734945041660,-1387.5,0.00013698,2]
[346405240,1734945041669,-500.0,0.00013698,2]
[346405241,1734945041678,-641.42,0.00013698,2]
[346405242,1734945041688,-500.0,0.00013698,2]
[346405243,1734945041697,-471.22,0.00013698,2]
[346405244,1734945041706,-500.0,0.00013698,2]
[346405245,1734945041715,-500.0,0.00013698,2]
[346405246,1734945041725,-500.0,0.00013698,2]
[346405247,1734945041734,-500.0,0.00013698,2]
[346405248,1734945041743,-500.0,0.00013698,2]
[346405249,1734945041752,-500.0,0.00013698,2]
[346405250,1734945041762,-740.77,0.00013698,2]
[346405251,1734945041771,-500.0,0.00013698,2]
[346405252,1734945041781,-500.0,0.00013698,2]
[346405253,1734945041791,-500.0,0.00013698,2]
[346405254,1734945041800,-500.0,0.00013698,4]
[346405255,1734945041809,-706.55,0.00013698,2]
[346405256,1734945041819,-217.12200315,0.00013698,2]
[346405257,1734945041828,-821.38,0.00013698,2]
[346405258,1734945041836,-1636.1,0.00013698,2]
[346405259,1734945041846,-937.85,0.00013698,2]
[346405260,1734945041855,-546.10260722,0.00013698,2]
[346405261,1734945041865,-500.0,0.00013698,2]
[346405262,1734945041874,-531.3,0.00013698,2]
[346405263,1734945041883,-500.0,0.00013698,2]
[346405264,1734945041893,-500.0,0.00013698,2]
[346405265,1734945041902,-500.0,0.00013698,2]
[346405266,1734945041911,-500.0,0.00013698,2]
[346405267,1734945041921,-500.0,0.00013698,2]
[346405268,1734945041930,-500.0,0.00013698,2]
[346405269,1734945041939,-562.56,0.00013698,2]
[346405270,1734945041949,-500.0,0.00013698,2]
[346405271,1734945041963,-16091.33,0.00013698,2]
[346405272,1734945041972,-500.0,0.00013698,2]
[346405273,1734945041981,-500.0,0.00013698,2]
[346405274,1734945041990,-500.0,0.00013698,2]
[346405275,1734945042000,-500.0,0.00013698,2]
[346405276,1734945042009,-500.0,0.00013698,2]
[346405277,1734945042021,-17150.62239222,0.00013698,2]
[346405278,1734945042171,-20879.26999966,0.00013698,2]
[346405301,1734945046561,-243.58622648,0.0001352,2]
[346405302,1734945046571,-4886.81049399,0.00013698,2]
[346405303,1734945572149,1000.0,0.00022,120]
[346405312,1734946110691,5069.86902248,0.0002,120]
[346405313,1734946112837,5561.99865064,0.00022,120]
[346405362,1734946232590,-185.6284939,0.00011537,2]
[346405364,1734946232600,-300.0,0.00011931,2]
[346405366,1734946232610,-300.0,0.00011931,2]
[346405368,1734946232619,-5890.36335405,0.00011932,2]
[346405447,1734946238636,-7725.82915399,0.00011932,2]
[346405448,1734946238695,-11283.80749196,0.00011932,2]
[346405449,1734946238704,-7136.1994953,0.00012368,2]
[346405450,1734946238714,-197.9793559,0.00012397,2]
[346405451,1734946238723,-492.66,0.0001302,2]
[346405452,1734946238732,-420.0,0.00013099,2]
[346405453,1734946238742,-420.0,0.00013124,2]
[346405454,1734946238751,-340.6301139,0.00013252,2]
[346405455,1734946238762,-1589.37936883,0.0001338,2]
[346405456,1734946238771,-600.0,0.0001344,2]
[346405458,1734946238780,-238.6690628,0.00013561,2]
[346405459,1734946238788,-600.0,0.0001358,2]
[346405460,1734946238797,-592.1688754,0.000136,2]
[346405462,1734946238806,-29227.03684323,0.000136,2]
[346405768,1734947432881,-300.0,0.0001256,2]
[346405769,1734947432891,-6561.86596799,0.00012561,2]
[346405770,1734947432944,-18338.13403201,0.00012561,2]
[346405771,1734947432954,-484.613,0.0001302,2]
[346405772,1734947432963,-7303.00733076,0.00013403,2]
[346405773,1734947432972,-752.94001549,0.0001344,2]
[346405774,1734947432981,-207.0,0.00013482,2]
[346405775,1734947432990,-238.6690628,0.00013561,2]
[346405776,1734947433000,-48401.7520904,0.000136,2]
[346405816,1734947438815,-25041.04351825,0.000136,2]
[346405824,1734947438875,-7331.40768153,0.000136,2]
[346405992,1734947440644,-9590.10000001,0.000136,2]
[346406351,1734947444072,-5207.41074273,0.000136,2]
[346410974,1734948632143,-600.0,0.0001232,2]
[346410976,1734948632153,-300.0,0.00012697,2]
[346410977,1734948632162,-300.0,0.00012697,2]
[346410979,1734948632172,-9.4558,0.00012698,2]
[346410980,1734948632192,-5084.9995,0.00012698,2]
[346410999,1734948637864,-1722.3396068,0.00012698,2]
[346411020,1734948639900,-18083.2050932,0.00012698,2]
[346411021,1734948639910,-477.765,0.0001302,2]
[346411022,1734948639920,-4432.75498179,0.00013153,2]
[346411037,1734948645946,-1249.49574604,0.00012571,2]
[346411038,1734948645960,-761.99282388,0.00013153,2]
[346411039,1734948646011,-277.59,0.00013153,2]
[346411101,1734949832283,-300.0,0.00012691,2]
[346411102,1734949832293,-19409.0,0.00012692,2]
[346411103,1734949832381,-5491.0,0.00012692,2]
[346411104,1734949832391,-457.756,0.0001292,2]
[346411105,1734949832400,-1830.66952509,0.00012933,2]
[346411106,1734949832409,-166.71119486,0.00013554,2]
[346411108,1734949832419,-152.81594,0.00013561,2]
[346411110,1734949832428,-619.948,0.00013561,2]
[346411112,1734949832437,-215.05785558,0.00013561,2]
[346411114,1734949832447,-666.0,0.00013598,2]
[346411116,1734949832456,-8099.77542096,0.00013599,2]
[346411176,1734949838031,-666.0,0.00013598,2]
[346411177,1734949838041,-12229.33534114,0.00013599,2]
[346411178,1734949838120,-94124.8012579,0.00013599,2]
[346411179,1734949838132,-198.50288891,0.00013599,2]
[346411180,1734949838141,-249.095,0.00013654,2]
[346411181,1734949838151,-1547.60085319,0.00013654,2]
[346411182,1734949838162,-620.39914681,0.00013654,2]
[346411183,1734949838171,-534.0,0.00013654,2]
[346411184,1734949838181,-2371.0,0.00013654,2]
[346411185,1734949838190,-500.0,0.00013673,2]
[346411186,1734949838199,-520.75693722,0.00013673,2]
[346411187,1734949838208,-500.0,0.00013673,2]
[346411188,1734949838218,-151.0,0.00013698,2]
[346411189,1734949838227,-152.270941,0.00013698,2]
[346411190,1734949838236,-500.0,0.00013698,2]
[346411191,1734949838245,-500.0,0.00013698,2]
[346411192,1734949838254,-3642.13055943,0.00013698,2]
[346411193,1734949838265,-2173.43249883,0.00013698,2]
[346411521,1734949843128,-2780.14949023,0.00013698,2]
[346411524,1734949843147,-252.87346695,0.00013698,2]
[346411534,1734949843232,-7480.42961839,0.00013698,2]
[346411536,1734949843242,-503.4221347,0.00013698,2]
[346411538,1734949843251,-522.42643576,0.00013698,2]
[346411540,1734949843261,-379.23030311,0.00013698,2]
[346411542,1734949843270,-500.0,0.00013698,2]
[346411544,1734949843279,-500.0,0.00013698,2]
[346411547,1734949843289,-500.0,0.00013698,2]
[346411549,1734949843299,-500.0,0.00013698,2]
[346411550,1734949843308,-500.0,0.00013698,2]
[346411552,1734949843317,-500.0,0.00013698,2]
[346411555,1734949843327,-500.0,0.00013698,2]
[346411556,1734949843336,-500.0,0.00013698,2]
[346411558,1734949843346,-500.0,0.00013698,2]
[346411561,1734949843356,-500.0,0.00013698,2]
[346411562,1734949843365,-500.0,0.00013698,2]
[346411564,1734949843375,-500.0,0.00013698,2]
[346411567,1734949843386,-500.0,0.00013698,2]
[346411568,1734949843396,-500.0,0.00013698,2]
[346411571,1734949843405,-500.0,0.00013698,2]
[346411573,1734949843415,-495.31853385,0.00013698,2]
[346411574,1734949843424,-500.0,0.00013698,2]
[346411577,1734949843435,-500.0,0.00013698,2]
[346411579,1734949843444,-500.0,0.00013698,2]
[346411581,1734949843453,-500.0,0.00013698,2]
[346411583,1734949843463,-500.0,0.00013698,2]
[346411585,1734949843472,-500.0,0.00013698,2]
[346411587,1734949843481,-509.79024182,0.00013698,2]
[346411589,1734949843491,-500.0,0.00013698,2]
[346411591,1734949843501,-500.0,0.00013698,2]
[346411593,1734949843511,-500.58308084,0.00013698,2]
[346411595,1734949843521,-500.0,0.00013698,2]
[346411597,1734949843530,-500.0,0.00013698,2]
[346411599,1734949843540,-500.0,0.00013698,2]
[346411600,1734949843550,-500.0,0.00013698,2]
[346411602,1734949843559,-500.0,0.00013698,2]
[346411604,1734949843569,-500.0,0.00013698,2]
[346411606,1734949843578,-500.0,0.00013698,2]
[346411609,1734949843588,-500.0,0.00013698,2]
[346411610,1734949843598,-500.0,0.00013698,2]
[346411612,1734949843608,-500.0,0.00013698,2]
[346411615,1734949843617,-500.0,0.00013698,2]
[346411617,1734949843628,-502.06915255,0.00013698,2]
[346411619,1734949843639,-500.0,0.00013698,2]
[346411621,1734949843649,-500.0,0.00013698,2]
[346411622,1734949843658,-500.0,0.00013698,2]
[346411625,1734949843668,-500.0,0.00013698,2]
[346411626,1734949843677,-263.71170207,0.00013698,2]
[346411629,1734949843686,-500.0,0.00013698,2]
[346411630,1734949843696,-500.0,0.00013698,2]
[346411632,1734949843705,-500.0,0.00013698,2]
[346411635,1734949843715,-648.25768715,0.00013698,2]
[346411636,1734949843724,-500.0,0.00013698,2]
[346411639,1734949843733,-153.810594,0.00013698,2]
[346411641,1734949843743,-500.0,0.00013698,2]
[346411643,1734949843752,-500.0,0.00013698,2]
[346411645,1734949843762,-500.0,0.00013698,2]
[346411647,1734949843771,-307.86433896,0.00013698,2]
[346411649,1734949843781,-500.0,0.00013698,2]
[346411651,1734949843791,-500.0,0.00013698,2]
[346411653,1734949843804,-151.0,0.00013698,2]
[346411655,1734949843813,-151.0,0.00013698,2]
[346411657,1734949843823,-500.0,0.00013698,2]
[346411659,1734949843832,-89.55573389,0.00013698,2]
[346414037,1734950841378,413.8,0.0001011,2]
[346414120,1734951032541,-300.0,0.00012675,2]
[346414124,1734951032550,-300.0,0.00012675,2]
[346414127,1734951032560,-12291.42121805,0.00012676,2]
[346414134,1734951032581,-6582.57017056,0.00012676,2]
[346414695,1734951038395,-6026.00861139,0.00012676,2]
[346414696,1734951038403,-438.602,0.0001302,2]
[346414697,1734951038413,-600.0,0.0001344,2]
[346414698,1734951038422,-195.7425014,0.00013561,2]
[346414699,1734951038431,-666.0,0.00013598,2]
[346414700,1734951038440,-495.958,0.00013599,2]
[346414701,1734951038449,-150.0,0.00013656,2]
[346414702,1734951038459,-534.0,0.00013656,2]
[346414703,1734951038468,-2128.0,0.00013656,2]
[346414704,1734951038477,-2359.0,0.00013656,2]
[346414705,1734951038487,-500.0,0.00013673,2]
[346414706,1734951038496,-500.0,0.00013673,2]
[346414707,1734951038506,-511.96835302,0.00013679,2]
[346414708,1734951038516,-5231.83181457,0.0001368,2]
[346414709,1734951038528,-5879.10094526,0.0001368,2]
[346414710,1734951038537,-151.973205,0.00013698,2]
[346414711,1734951038547,-500.0,0.00013698,2]
[346414712,1734951038556,-504.71196259,0.00013698,2]
[346414713,1734951038565,-500.0,0.00013698,2]
[346414714,1734951038575,-500.0,0.00013698,2]
[346414715,1734951038584,-500.0,0.00013698,2]
[346414716,1734951038593,-637.73634911,0.00013698,2]
[346414717,1734951038602,-500.0,0.00013698,2]
[346414718,1734951038612,-500.0,0.00013698,2]
[346414719,1734951038621,-500.0,0.00013698,2]
[346414720,1734951038632,-500.0,0.00013698,2]
[346414721,1734951038642,-502.62757638,0.00013698,2]
[346414722,1734951038660,-500.0,0.00013698,2]
[346414723,1734951038676,-500.0,0.00013698,2]
[346414724,1734951038848,-500.0,0.00013698,2]
[346414725,1734951038858,-500.0,0.00013698,2]
[346414726,1734951038867,-500.0,0.00013698,2]
[346414727,1734951038877,-502.93702089,0.00013698,2]
[346414728,1734951038888,-500.0,0.00013698,2]
[346414729,1734951038897,-500.0,0.00013698,2]
[346414730,1734951038907,-500.0,0.00013698,2]
[346414731,1734951038916,-151.0,0.00013698,2]
[346414733,1734951038925,-300.485086,0.00013698,2]
[346414735,1734951038935,-500.0,0.00013698,2]
[346414737,1734951038944,-500.0,0.00013698,2]
[346414739,1734951038953,-500.0,0.00013698,2]
[346414741,1734951038963,-500.0,0.00013698,2]
[346414743,1734951038972,-500.0,0.00013698,2]
[346414745,1734951038981,-500.0,0.00013698,2]
[346414747,1734951038991,-500.0,0.00013698,2]
[346414749,1734951039000,-506.34909029,0.00013698,2]
[346414750,1734951039010,-500.0,0.00013698,2]
[346414753,1734951039019,-500.0,0.00013698,2]
[346414755,1734951039029,-500.0,0.00013698,2]
[346414757,1734951039039,-500.0,0.00013698,2]
[346414759,1734951039048,-500.0,0.00013698,2]
[346414760,1734951039058,-500.0,0.00013698,2]
[346414762,1734951039067,-500.0,0.00013698,2]
[346414764,1734951039076,-500.0,0.00013698,2]
[346414766,1734951039085,-153.722438,0.00013698,2]
[346414768,1734951039094,-154.88228422,0.00013698,2]
[346414770,1734951039103,-500.0,0.00013698,2]
[346414772,1734951039113,-500.0,0.00013698,2]
[346414774,1734951039122,-500.0,0.00013698,2]
[346414776,1734951039133,-500.0,0.00013698,2]
[346414778,1734951039143,-500.0,0.00013698,2]
[346414780,1734951039152,-206.67787919,0.00013698,2]
[346414782,1734951039161,-500.0,0.00013698,2]
[346414784,1734951039171,-500.0,0.00013698,2]
[346414786,1734951039180,-500.0,0.00013698,2]
[346414788,1734951039190,-499.17969751,0.00013698,2]
[346414790,1734951039199,-523.07599283,0.00013698,2]
[346414792,1734951039209,-506.44451361,0.00013698,2]
[346414794,1734951039218,-500.0,0.00013698,2]
[346414796,1734951039227,-500.0,0.00013698,2]
[346414798,1734951039237,-500.0,0.00013698,2]
[346414800,1734951039246,-500.0,0.00013698,2]
[346414802,1734951039255,-500.0,0.00013698,2]
[346414804,1734951039264,-500.0,0.00013698,2]
[346414806,1734951039274,-500.0,0.00013698,4]
[346414808,1734951039283,-500.0,0.00013698,2]
[346414810,1734951039293,-500.0,0.00013698,2]
[346414812,1734951039302,-500.0,0.00013698,2]
[346414814,1734951039311,-500.0,0.00013698,2]
[346414816,1734951039320,-500.0,0.00013698,2]
[346414818,1734951039329,-500.0,0.00013698,2]
[346414820,1734951039338,-362.87425042,0.00013698,2]
[346414822,1734951039348,-151.0,0.00013698,2]
[346414824,1734951039357,-151.0,0.00013698,2]
[346414826,1734951039366,-276.435756,0.00013698,2]
[346414828,1734951039375,-500.0,0.00013698,2]
[346414830,1734951039387,-500.0,0.00013698,2]
[346414832,1734951039396,-500.0,0.00013698,2]
[346414834,1734951039405,-500.0,0.00013698,2]
[346414836,1734951039415,-500.0,0.00013698,2]
[346414838,1734951039424,-500.0,0.00013698,2]
[346414840,1734951039434,-502.61583885,0.00013698,2]
[346414842,1734951039443,-500.0,0.00013698,2]
[346414844,1734951039452,-500.0,0.00013698,2]
[346414846,1734951039462,-500.0,0.00013698,2]
[346414848,1734951039472,-532.28,0.00013698,2]
[346414850,1734951039481,-500.0,0.00013698,2]
[346414852,1734951039491,-500.0,0.00013698,2]
[346414854,1734951039501,-151.0,0.00013698,2]
[346414856,1734951039510,-646.21,0.00013698,2]
[346414858,1734951039520,-180.29329174,0.00013698,2]
[346414860,1734951039529,-500.0,0.00013698,2]
[346414862,1734951039539,-508.82,0.00013698,2]
[346414864,1734951039549,-500.0,0.00013698,2]
[346414866,1734951039558,-1.96688515,0.00013698,2]
[346414868,1734951039573,-498.03311485,0.00013698,2]
[346414871,1734951039584,-500.0,0.00013698,2]
[346414872,1734951039595,-500.0,0.00013698,2]
[346414873,1734951039605,-501.83513903,0.00013698,2]
[346414874,1734951039615,-578.83766403,0.00013698,2]
[346414875,1734951039624,-824.1,0.00013698,2]
[346414876,1734951039635,-863.72,0.00013698,2]
[346414877,1734951039646,-144.44125745,0.00013698,2]
[346414881,1734951040377,-355.55874255,0.00013698,2]
[346414882,1734951040387,-500.0,0.00013698,2]
[346414883,1734951040398,-120.30815553,0.00013698,2]
[346414978,1734951043494,-150.743,0.00013656,2]
[346414979,1734951043504,-500.0,0.00013698,2]
[346414980,1734951043513,-500.0,0.00013698,2]
[346414981,1734951043523,-500.0,0.00013698,2]
[346414982,1734951043532,-247.10149344,0.00013698,2]
[346414983,1734951043541,-500.0,0.00013698,2]
[346414985,1734951043550,-502.15083437,0.00013698,2]
[346414986,1734951043559,-716.99,0.00013698,2]
[346414987,1734951043568,-500.0,0.00013698,2]
[346414988,1734951043577,-500.0,0.00013698,2]
[346414989,1734951043587,-500.0,0.00013698,2]
[346414990,1734951043596,-500.0,0.00013698,2]
[346414991,1734951043604,-501.73266881,0.00013698,2]
[346414992,1734951043613,-500.0,0.00013698,2]
[346414993,1734951043623,-500.0,0.00013698,2]
[346414994,1734951043632,-626.02175958,0.00013698,2]
[346414995,1734951043643,-500.0,0.00013698,2]
[346414996,1734951043655,-500.0,0.00013698,2]
[346414997,1734951043664,-500.0,0.00013698,2]
[346414999,1734951043674,-500.0,0.00013698,2]
[346415000,1734951043683,-500.0,0.00013698,2]
[346415001,1734951043693,-358.942033,0.00013698,2]
[346415003,1734951043702,-332.11948251,0.00013698,2]
[346415260,1734951046525,-344.86890015,0.00013698,2]
[346416747,1734952232663,-1199.27366754,0.00012645,2]
[346416748,1734952232674,-196.42946226,0.00012645,2]
[346416749,1734952232684,-300.0,0.00012697,2]
[346416750,1734952232693,-300.0,0.00012697,2]
[346416751,1734952232703,-10134.63886292,0.00012698,2]
[346416752,1734952232724,-655.5977,0.00012698,2]
[346416783,1734952238424,-5542.19441804,0.00012698,2]
[346416796,1734952238572,-301.79,0.00012698,2]
[346416811,1734952240794,-4621.89047837,0.00012698,2]
[346416839,1734952243557,-3643.88854067,0.00012698,2]
[346416841,1734952243567,-523.848,0.0001302,2]
[346416843,1734952243576,-195.7425014,0.00013561,2]
[346416845,1734952243585,-227.06098138,0.00013598,2]
[346417820,1734952300732,350.0,0.00022,120]
[346417821,1734952331892,500.0,0.00022,120]
[346417873,1734953432775,-396.767,0.00012384,2]
[346417875,1734953432785,-300.0,0.00012499,2]
[346417877,1734953432794,-831.81700604,0.000125,2]
[346417890,1734953432906,-3276.85644651,0.000125,2]
[346417989,1734953438901,-460.58713095,0.000125,2]
[346418299,1734953446763,-5551.41175969,0.000125,2]
[346418320,1734954633460,-300.0,0.00011402,2]
[346418321,1734954633470,-4400.3,0.00011403,2]
[346422273,1734955837975,-300.0,0.00011412,2]
[346422275,1734955837986,-163.6746467,0.00011413,2]
[346422276,1734955837995,-446.1763612,0.00011413,2]
[346422278,1734955838007,-1525.66415874,0.00011413,2]
[346422281,1734955838028,-22928.15948006,0.00011413,2]
[346422284,1734955838037,-326.5591481,0.00011647,2]
[346422286,1734955838047,-4909.33612104,0.000125,2]
[346422288,1734955838056,-420.0,0.00012535,2]
[346422289,1734955838066,-666.0,0.00012537,2]
[346422292,1734955838075,-500.0,0.00012598,2]
[346422293,1734955838084,-500.76203414,0.00012598,2]
[346422295,1734955838093,-500.0,0.00012598,2]
[346422297,1734955838103,-500.0,0.00012598,2]
[346422299,1734955838112,-507.22424755,0.00012598,2]
[346422301,1734955838121,-256.31090834,0.00012598,2]
[346422303,1734955838130,-500.0,0.00012598,2]
[346422305,1734955838140,-500.0,0.00012598,2]
[346422307,1734955838149,-500.0,0.00012598,2]
[346422309,1734955838158,-500.0,0.00012598,2]
[346422311,1734955838167,-500.0,0.00012598,2]
[346422313,1734955838177,-500.0,0.00012598,2]
[346422315,1734955838187,-500.0,0.00012598,2]
[346422317,1734955838197,-500.0,0.00012598,2]
[346422319,1734955838206,-500.0,0.00012598,2]
[346422321,1734955838216,-324.79548526,0.00012598,2]
[346422323,1734955838225,-500.0,0.00012598,2]
[346422325,1734955838235,-500.0,0.00012598,2]
[346422327,1734955838245,-500.0,0.00012598,2]
[346422329,1734955838255,-535.8571425,0.00012598,2]
[346422331,1734955838265,-500.0,0.00012598,2]
[346422333,1734955838275,-500.0,0.00012598,2]
[346422335,1734955838284,-500.0,0.00012598,2]
[346422337,1734955838294,-500.0,0.00012598,2]
[346422339,1734955838304,-500.0,0.00012598,2]
[346422341,1734955838313,-500.0,0.00012598,2]
[346422343,1734955838322,-500.0,0.00012598,2]
[346422345,1734955838332,-500.0,0.00012598,2]
[346422347,1734955838341,-500.0,0.00012598,2]
[346422349,1734955838350,-550.0,0.00012598,2]
[346422351,1734955838359,-500.0,0.00012598,2]
[346422353,1734955838369,-500.0,0.00012598,2]
[346422355,1734955838378,-500.0,0.00012598,2]
[346422357,1734955838387,-500.0,0.00012598,2]
[346422359,1734955838397,-500.0,0.00012598,2]
[346422361,1734955838409,-500.0,0.00012598,2]
[346422363,1734955838418,-500.0,0.00012598,2]
[346422365,1734955838427,-500.0,0.00012598,2]
[346422367,1734955838437,-500.0,0.00012598,2]
[346422369,1734955838446,-500.0,0.00012598,2]
[346422371,1734955838455,-500.0,0.00012598,2]
[346422373,1734955838464,-500.0,0.00012598,2]
[346422375,1734955838473,-500.0,0.00012598,2]
[346422377,1734955838484,-500.0,0.00012598,2]
[346422379,1734955838493,-500.0,0.00012598,2]
[346422381,1734955838504,-500.0,0.00012598,2]
[346422383,1734955838513,-500.0,0.00012598,2]
[346422385,1734955838522,-500.0,0.00012598,2]
[346422387,1734955838532,-500.0,0.00012598,2]
[346422388,1734955838541,-500.0,0.00012598,2]
[346422390,1734955838551,-500.0,0.00012598,2]
[346422393,1734955838560,-500.0,0.00012598,2]
[346422395,1734955838569,-500.0,0.00012598,2]
[346422397,1734955838579,-500.0,0.00012598,2]
[346422399,1734955838588,-202.54042315,0.00012598,2]
[346422526,1734955839946,-297.45957685,0.00012598,2]
[346422527,1734955839956,-500.0,0.00012598,2]
[346422528,1734955839966,-448.42857139,0.00012598,2]
[346422529,1734955839976,-385.0,0.00012598,2]
[346422530,1734955839985,-500.0,0.00012598,2]
[346422531,1734955839995,-500.0,0.00012598,2]
[346422532,1734955840006,-500.0,0.00012598,2]
[346422533,1734955840016,-152.0,0.00012598,2]
[346422534,1734955840025,-154.184414,0.00012599,2]
[346422535,1734955840035,-151.0,0.00012599,2]
[346422536,1734955840044,-151.0,0.00012599,2]
[346422537,1734955840053,-151.0,0.00012599,2]
[346422538,1734955840063,-151.0,0.00012599,2]
[346422539,1734955840238,-151.0,0.00012599,2]
[346422540,1734955840248,-151.0,0.00012599,2]
[346422541,1734955840258,-151.0,0.00012599,2]
[346422542,1734955840268,-209.288962,0.00012599,2]
[346422543,1734955840277,-151.0,0.00012599,2]
[346422544,1734955840287,-151.0,0.00012599,2]
[346422545,1734955840296,-285.401601,0.00012599,2]
[346422546,1734955840306,-285.401601,0.00012599,2]
[346422547,1734955840316,-285.401601,0.00012599,2]
[346422548,1734955840325,-285.401601,0.00012599,2]
[346422549,1734955840335,-285.401601,0.00012599,2]
[346422550,1734955840345,-285.401601,0.00012599,2]
[346422551,1734955840354,-285.401601,0.00012599,2]
[346422552,1734955840364,-285.401601,0.00012599,2]
[346422553,1734955840374,-285.401601,0.00012599,2]
[346422554,1734955840383,-285.401601,0.00012599,2]
[346422555,1734955840392,-151.0,0.00012599,2]
[346422556,1734955840402,-151.0,0.00012599,2]
[346422557,1734955840411,-151.0,0.00012599,2]
[346422559,1734955840420,-151.0,0.00012599,2]
[346422561,1734955840430,-151.0,0.00012599,2]
[346422563,1734955840439,-151.0,0.00012599,2]
[346422565,1734955840448,-179.746986,0.00012599,2]
[346422567,1734955840457,-153.722438,0.00012599,2]
[346422569,1734955840466,-151.0,0.00012599,2]
[346422571,1734955840475,-300.485086,0.00012599,2]
[346422573,1734955840483,-189.54709646,0.00012599,2]
[346422575,1734955840493,-295.072319,0.00012599,2]
[346422577,1734955840505,-340.994931,0.00012599,2]
[346422579,1734955840515,-340.994931,0.00012599,2]
[346422581,1734955840524,-340.994931,0.00012599,2]
[346422583,1734955840533,-340.994931,0.00012599,2]
[346422585,1734955840542,-340.994931,0.00012599,2]
[346422587,1734955840552,-340.994931,0.00012599,2]
[346422589,1734955840561,-340.994931,0.00012599,2]